[Event "44th Chess Olympiad Open 2022"]
[Site "Chennai"]
[Date "2022.07.30"]
[Round "2.66"]
[White "Mdoe, Yusuf"]
[Black "Monnaatsheko, Keletshabile"]
[Result "0-1"]
[WhiteElo "1722"]
[BlackElo "2014"]
[Annotator "NA"]
[PlyCount "72"]
[EventDate "2022.??.??"]
[TimeControl "60"]

1. e4 {[%emt 0:00:32]} e6 {[%emt 0:00:04]} 2. Nf3 {[%emt 0:01:15]} d5 {[%emt 0:
00:00]} 3. exd5 {[%emt 0:00:29]} exd5 {[%emt 0:00:04]} 4. d4 {[%emt 0:00:19]}
Nc6 {[%emt 0:00:25]} 5. Bb5 {[%emt 0:01:07]} Bd6 {[%emt 0:00:35]} 6. Bg5 {
[%emt 0:02:44]} f6 {[%emt 0:00:10]} 7. Bh4 {[%emt 0:00:27]} Nge7 {[%emt 0:00:
00]} 8. Nc3 {[%emt 0:03:39]} Bg4 {[%emt 0:00:41]} 9. h3 {[%emt 0:02:01]} Bh5 {
[%emt 0:00:54]} 10. Bg3 {[%emt 0:10:01]} Bxg3 {[%emt 0:01:01]} 11. fxg3 {
[%emt 0:00:11]} Qd6 {[%emt 0:02:02]} 12. Bxc6+ {[%emt 0:02:48]} bxc6 {[%emt 0:
00:00]} 13. Ne2 {[%emt 0:00:19]} Qb4+ {[%emt 0:02:48]} 14. Qd2 {[%emt 0:00:24]}
Qxb2 {[%emt 0:02:14]} 15. Kf2 {[%emt 0:01:01]} Bg6 {[%emt 0:07:50]} 16. Rhc1 {
[%emt 0:00:14]} O-O {[%emt 0:01:05]} 17. a4 {[%emt 0:02:24]} Qb8 {[%emt 0:00:
00]} 18. Nf4 {[%emt 0:06:42]} Bf7 {[%emt 0:04:15]} 19. Rab1 {[%emt 0:01:05]}
Qc8 {[%emt 0:00:10]} 20. g4 {[%emt 0:01:18]} Qa6 {[%emt 0:01:46]} 21. Nd3 {
[%emt 0:05:40]} Rfb8 {[%emt 0:02:14]} 22. Nc5 {[%emt 0:04:35]} Qc8 {[%emt 0:00:
00]} 23. a5 {[%emt 0:04:52]} Rb5 {[%emt 0:00:45]} 24. a6 {[%emt 0:02:10]} Rab8
{[%emt 0:05:56]} 25. Nb7 {[%emt 0:00:54]} Rb6 {[%emt 0:01:18]} 26. Qa5 {
[%emt 0:06:47]} Qf8 {[%emt 0:14:06]} 27. Rxb6 {[%emt 0:08:17]} axb6 {[%emt 0:
00:00]} 28. Qc3 {[%emt 0:06:06]} Ra8 {[%emt 0:01:12]} 29. Ra1 {[%emt 0:04:02]}
Qc8 {[%emt 0:05:47]} 30. Ne1 {[%emt 0:04:20]} h5 {[%emt 0:02:25]} 31. gxh5 {
[%emt 0:03:13]} Bxh5 {[%emt 0:00:04]} 32. g4 {[%emt 0:00:58]} Bg6 {[%emt 0:00:
00]} 33. Nd3 {[%emt 0:00:47]} Bxd3 {[%emt 0:01:20]} 34. Qxd3 {[%emt 0:00:21]}
Qd7 {[%emt 0:00:32]} 35. Re1 {[%emt 0:04:59]} Kf7 {[%emt 0:01:10]} 36. Re3 {
[%emt 0:08:37]} Ng6 {[%emt 0:00:45]} 0-1

[Event "44th Chess Olympiad Open 2022"]
[Site "Chennai"]
[Date "2022.07.30"]
[Round "2.67"]
[White "Gavarrete, Joel"]
[Black "Dabuae, Thubalkain"]
[Result "1-0"]
[WhiteElo "2035"]
[BlackElo "1941"]
[Annotator "NA RC"]
[PlyCount "59"]
[EventDate "2022.??.??"]
[TimeControl "60"]

1. e4 {[%emt 0:00:08]} Nc6 {[%emt 0:00:14]} 2. d4 {[%emt 0:01:24]} e5 {[%emt 0:
00:00]} 3. Nf3 {[%emt 0:02:10]} exd4 {[%emt 0:01:35]} 4. Nxd4 {[%emt 0:00:11]}
Nxd4 {[%emt 0:00:54]} 5. Qxd4 {[%emt 0:00:10]} d6 {[%emt 0:02:05]} 6. Nc3 {
[%emt 0:01:53]} Nf6 {[%emt 0:01:38]} 7. Bf4 {[%emt 0:02:38]} Be7 {[%emt 0:00:
00]} 8. Be2 {[%emt 0:04:20]} O-O {[%emt 0:00:38]} 9. O-O-O {[%emt 0:02:46]} c5
{[%emt 0:00:29]} 10. Qd2 {[%emt 0:01:00]} Ne8 {[%emt 0:09:10]} 11. Nd5 {
[%emt 0:17:17]} Be6 {[%emt 0:01:21]} 12. Nxe7+ {[%emt 0:02:21]} Qxe7 {[%emt 0:
00:00]} 13. Bxd6 {[%emt 0:01:12]} Nxd6 {[%emt 0:00:36]} 14. Qxd6 {[%emt 0:00:
00]} Qg5+ {[%emt 0:00:49]} 15. Qd2 {[%emt 0:00:42]} Qxg2 {[%emt 0:01:08]} 16.
Qe3 {[%emt 0:00:28]} b6 {[%emt 0:00:48]} 17. h4 {[%emt 0:02:00]} Qg6 {[%emt 0:
00:00]} 18. Rdg1 {[%emt 0:05:28]} Qf6 {[%emt 0:01:06]} 19. f4 {[%emt 0:10:36]}
Rfe8 {[%emt 0:03:53]} 20. e5 {[%emt 0:03:18]} Qe7 {[%emt 0:00:52]} 21. Bb5 {
[%emt 0:02:39]} Bd7 {[%emt 0:01:14]} 22. Qg3 {[%emt 0:02:09]} g6 {[%emt 0:00:
00]} 23. Bd3 {[%emt 0:06:32]} b5 {[%emt 0:03:07]} 24. h5 {[%emt 0:02:10]} g5 {
[%emt 0:09:00]} 25. Qxg5+ {[%emt 0:06:05]} Qxg5 {[%emt 0:00:20]} 26. Rxg5+ {
[%emt 0:00:05]} Kh8 {[%emt 0:00:53]} 27. Rhg1 {[%emt 0:00:38]} Rg8 {[%emt 0:00:
00]} 28. h6 {[%emt 0:00:41]} c4 {[%emt 0:01:38]} 29. Be4 {[%emt 0:00:20]} Raf8
{[%emt 0:03:24]} 30. Rg7 {[%emt 0:00:21]} 1-0

[Event "44th Chess Olympiad Open 2022"]
[Site "Chennai"]
[Date "2022.07.30"]
[Round "2.67"]
[White "Chahin Godoy, Angel Eduardo"]
[Black "Dabuae, David"]
[Result "1/2-1/2"]
[WhiteElo "1844"]
[BlackElo "1707"]
[Annotator "NA RC"]
[PlyCount "80"]
[EventDate "2022.??.??"]
[TimeControl "60"]

1. e4 {[%emt 0:00:05]} e5 {[%emt 0:00:11]} 2. Nf3 {[%emt 0:00:26]} Nc6 {
[%emt 0:00:11]} 3. Bb5 {[%emt 0:00:20]} Nf6 {[%emt 0:00:58]} 4. O-O {[%emt 0:
00:00]} Be7 {[%emt 0:02:16]} 5. Re1 {[%emt 0:00:58]} d6 {[%emt 0:00:31]} 6. h3
{[%emt 0:01:29]} O-O {[%emt 0:00:10]} 7. d4 {[%emt 0:01:12]} Nxd4 {[%emt 0:00:
00]} 8. Nxd4 {[%emt 0:00:10]} exd4 {[%emt 0:00:16]} 9. Qxd4 {[%emt 0:00:05]} c6
{[%emt 0:00:59]} 10. Bf1 {[%emt 0:01:13]} Nd7 {[%emt 0:00:33]} 11. Nc3 {
[%emt 0:02:28]} Ne5 {[%emt 0:00:31]} 12. f4 {[%emt 0:02:47]} Nd7 {[%emt 0:00:
00]} 13. Kh1 {[%emt 0:04:28]} d5 {[%emt 0:09:19]} 14. exd5 {[%emt 0:05:06]} Bc5
{[%emt 0:00:07]} 15. Qd1 {[%emt 0:01:15]} Qh4 {[%emt 0:01:06]} 16. Ne4 {
[%emt 0:03:50]} Bb6 {[%emt 0:00:20]} 17. g3 {[%emt 0:00:15]} Qd8 {[%emt 0:00:
00]} 18. dxc6 {[%emt 0:02:18]} bxc6 {[%emt 0:00:22]} 19. Be3 {[%emt 0:00:24]}
c5 {[%emt 0:03:18]} 20. Nd6 {[%emt 0:04:16]} Rb8 {[%emt 0:02:29]} 21. Nxc8 {
[%emt 0:00:11]} Qxc8 {[%emt 0:00:17]} 22. Qf3 {[%emt 0:00:12]} Ba5 {[%emt 0:00:
00]} 23. Reb1 {[%emt 0:02:59]} Nf6 {[%emt 0:08:40]} 24. a3 {[%emt 0:00:13]} Bb6
{[%emt 0:06:18]} 25. Rd1 {[%emt 0:00:12]} Re8 {[%emt 0:03:33]} 26. f5 {[%emt 0:
00:00]} c4 {[%emt 0:02:48]} 27. Bxb6 {[%emt 0:01:51]} Rxb6 {[%emt 0:00:10]} 28.
Rd4 {[%emt 0:02:31]} Rxb2 {[%emt 0:00:59]} 29. Rxc4 {[%emt 0:00:08]} Qb8 {
[%emt 0:00:33]} 30. Rd1 {[%emt 0:04:54]} Rb1 {[%emt 0:00:53]} 31. Rcd4 {
[%emt 0:00:16]} Rxd1 {[%emt 0:00:16]} 32. Rxd1 {[%emt 0:00:05]} Ne4 {[%emt 0:
00:00]} 33. Kg2 {[%emt 0:01:56]} Qc7 {[%emt 0:04:42]} 34. Bd3 {[%emt 0:02:29]}
Ng5 {[%emt 0:00:07]} 35. Re1 {[%emt 0:00:53]} Qd8 {[%emt 0:02:55]} 36. Rxe8+ {
[%emt 0:00:55]} Qxe8 {[%emt 0:00:15]} 37. Qf4 {[%emt 0:00:15]} Qa8+ {[%emt 0:
00:00]} 38. Kh2 {[%emt 0:00:40]} Qe8 {[%emt 0:00:07]} 39. Qf3 {[%emt 0:00:04]}
Qa8 {[%emt 0:14:30]} 40. Qf4 {[%emt 0:00:00]} f6 1/2-1/2

[Event "44th Chess Olympiad Open 2022"]
[Site "Chennai"]
[Date "2022.07.30"]
[Round "2.67"]
[White "Depaune, Ricko"]
[Black "Chinchilla, Alejandro Jose"]
[Result "0-1"]
[WhiteElo "1726"]
[BlackElo "2166"]
[Annotator "ChessBase"]
[PlyCount "72"]
[EventDate "2022.??.??"]
[TimeControl "60"]

1. e4 {[%emt 0:00:57]} c5 {[%emt 0:00:14]} 2. d4 {[%emt 0:00:06]} cxd4 {
[%emt 0:00:10]} 3. Nf3 {[%emt 0:00:04]} Nf6 {[%emt 0:04:44]} 4. e5 {[%emt 0:00:
00]} Nd5 {[%emt 0:00:33]} 5. Qxd4 {[%emt 0:06:33]} e6 {[%emt 0:00:21]} 6. Qd1 {
[%emt 0:03:08]} Nc6 {[%emt 0:04:59]} 7. Bc4 {[%emt 0:02:56]} Nde7 {[%emt 0:00:
00]} 8. Nc3 {[%emt 0:00:48]} Ng6 {[%emt 0:01:33]} 9. Qe2 {[%emt 0:00:07]} a6 {
[%emt 0:01:14]} 10. a3 {[%emt 0:00:07]} Qc7 {[%emt 0:01:06]} 11. O-O {[%emt 0:
00:00]} Ncxe5 {[%emt 0:03:06]} 12. Nxe5 {[%emt 0:04:22]} Qxe5 {[%emt 0:00:54]}
13. f4 {[%emt 0:03:51]} Qxe2 {[%emt 0:00:45]} 14. Bxe2 {[%emt 0:00:18]} Bc5+ {
[%emt 0:01:20]} 15. Kh1 {[%emt 0:00:06]} f5 {[%emt 0:00:11]} 16. Bh5 {[%emt 0:
00:00]} b5 {[%emt 0:00:54]} 17. b4 {[%emt 0:01:40]} Bd4 {[%emt 0:01:57]} 18.
Bb2 {[%emt 0:00:04]} Bb7 {[%emt 0:00:49]} 19. Rad1 {[%emt 0:00:59]} Bf6 {
[%emt 0:00:21]} 20. h3 {[%emt 0:08:05]} Ke7 {[%emt 0:06:35]} 21. Bf3 {[%emt 0:
00:00]} Bxf3 {[%emt 0:15:38]} 22. Rxf3 {[%emt 0:00:24]} Rhc8 {[%emt 0:00:30]}
23. g3 {[%emt 0:00:24]} Ra7 {[%emt 0:03:49]} 24. Re3 {[%emt 0:00:07]} Kf7 {
[%emt 0:01:45]} 25. Rd6 {[%emt 0:08:20]} Nf8 {[%emt 0:00:33]} 26. Nd1 {[%emt 0:
00:00]} Rxc2 {[%emt 0:02:52]} 27. Bxf6 {[%emt 0:01:45]} gxf6 {[%emt 0:00:05]}
28. Red3 {[%emt 0:02:33]} a5 {[%emt 0:02:54]} 29. Rb6 {[%emt 0:03:16]} axb4 {
[%emt 0:00:05]} 30. axb4 {[%emt 0:00:09]} Ra1 {[%emt 0:00:31]} 31. Rbd6 {
[%emt 0:01:19]} Rb1 {[%emt 0:00:38]} 32. R6d4 {[%emt 0:01:05]} d5 {[%emt 0:00:
00]} 33. g4 {[%emt 0:02:25]} Kg6 {[%emt 0:04:50]} 34. Rg3 {[%emt 0:02:16]} Rc4
{[%emt 0:00:12]} 35. gxf5+ {[%emt 0:05:30]} Kxf5 {[%emt 0:00:20]} 36. Rd2 {
[%emt 0:05:45]} Rxf4 {[%emt 0:00:39]} 0-1

[Event "44th Chess Olympiad Open 2022"]
[Site "Chennai"]
[Date "2022.07.30"]
[Round "2.68"]
[White "Willem Blijstra"]
[Black "Ebosse Kingue Victor Patrick"]
[Result "0-1"]
[WhiteElo "2198"]
[BlackElo "2054"]
[Annotator "ChessBase"]
[PlyCount "82"]
[EventDate "2022.??.??"]
[TimeControl "60"]

1. d4 {[%emt 0:00:04]} Nf6 {[%emt 0:00:12]} 2. c4 {[%emt 0:00:05]} g6 {[%emt 0:
00:00]} 3. Nc3 {[%emt 0:00:21]} Bg7 {[%emt 0:00:06]} 4. e4 {[%emt 0:00:20]} d6
{[%emt 0:00:05]} 5. Be2 {[%emt 0:00:21]} O-O {[%emt 0:00:10]} 6. Bg5 {[%emt 0:
00:00]} h6 {[%emt 0:00:10]} 7. Be3 {[%emt 0:00:23]} e5 {[%emt 0:04:51]} 8. d5 {
[%emt 0:00:13]} c6 {[%emt 0:00:55]} 9. g4 {[%emt 0:09:45]} cxd5 {[%emt 0:04:03]
} 10. cxd5 {[%emt 0:08:55]} b5 {[%emt 0:02:10]} 11. a3 {[%emt 0:04:12]} Na6 {
[%emt 0:03:06]} 12. b4 {[%emt 0:05:53]} Nc7 {[%emt 0:00:38]} 13. f3 {[%emt 0:
00:00]} Bd7 {[%emt 0:07:41]} 14. Qd2 {[%emt 0:01:18]} Kh7 {[%emt 0:02:18]} 15.
h4 {[%emt 0:05:05]} Ng8 {[%emt 0:06:39]} 16. Bd3 {[%emt 0:02:08]} a5 {[%emt 0:
00:00]} 17. Rc1 {[%emt 0:02:53]} axb4 {[%emt 0:02:50]} 18. axb4 {[%emt 0:00:05]
} Qb8 {[%emt 0:04:44]} 19. Nge2 {[%emt 0:00:47]} Bf6 {[%emt 0:21:39]} 20. g5 {
[%emt 0:02:00]} Bd8 {[%emt 0:00:41]} 21. h5 {[%emt 0:00:13]} Na6 {[%emt 0:00:
00]} 22. hxg6+ {[%emt 0:02:57]} fxg6 {[%emt 0:00:08]} 23. f4 {[%emt 0:01:20]}
Nxb4 {[%emt 0:01:18]} 24. Bb1 {[%emt 0:00:48]} Na6 {[%emt 0:05:43]} 25. Ng3 {
[%emt 0:01:02]} Kg7 {[%emt 0:03:27]} 26. gxh6+ {[%emt 0:01:42]} Kh7 {[%emt 0:
00:00]} 27. f5 {[%emt 0:00:31]} Be8 {[%emt 0:00:28]} 28. Qf2 {[%emt 0:04:28]}
Nf6 {[%emt 0:01:59]} 29. Qf3 {[%emt 0:04:03]} Nc5 {[%emt 0:01:05]} 30. Kf2 {
[%emt 0:01:22]} Ra3 {[%emt 0:02:10]} 31. fxg6+ {[%emt 0:02:17]} Bxg6 {[%emt 0:
00:00]} 32. Nf5 {[%emt 0:00:09]} Rxc3 {[%emt 0:01:32]} 33. Rxc3 {[%emt 0:01:39]
} Nfxe4+ {[%emt 0:00:29]} 34. Bxe4 {[%emt 0:00:18]} Nxe4+ {[%emt 0:00:25]} 35.
Qxe4 {[%emt 0:00:44]} Rxf5+ {[%emt 0:01:49]} 36. Qf3 {[%emt 0:06:38]} Rxf3+ {
[%emt 0:00:47]} 37. Kxf3 {[%emt 0:00:03]} Qb7 {[%emt 0:00:17]} 38. Rc6 {
[%emt 0:00:09]} Qf7+ {[%emt 0:00:17]} 39. Ke2 {[%emt 0:01:06]} Qxd5 {[%emt 0:
00:00]} 40. Rhc1 {[%emt 0:00:59]} Bd3+ {[%emt 0:01:35]} 41. Ke1 {[%emt 0:31:36]
} Bc4 {[%emt 0:33:23]} 0-1

[Event "44th Chess Olympiad Open 2022"]
[Site "Chennai"]
[Date "2022.07.30"]
[Round "2.68"]
[White "Rurik Capella"]
[Black "Zebaze Dongmo Loic Dylane"]
[Result "1-0"]
[WhiteElo "1952"]
[BlackElo "1837"]
[Annotator "NA RC"]
[PlyCount "61"]
[EventDate "2022.??.??"]
[TimeControl "60"]

1. e4 {[%emt 0:00:14]} e6 {[%emt 0:00:08]} 2. d4 {[%emt 0:00:14]} d5 {[%emt 0:
00:00]} 3. e5 {[%emt 0:00:12]} c5 {[%emt 0:00:23]} 4. c3 {[%emt 0:00:17]} Nc6 {
[%emt 0:00:07]} 5. Nf3 {[%emt 0:00:12]} Nge7 {[%emt 0:01:09]} 6. Bd3 {[%emt 0:
00:00]} Ng6 {[%emt 0:00:11]} 7. h4 {[%emt 0:00:22]} cxd4 {[%emt 0:00:14]} 8.
cxd4 {[%emt 0:06:12]} Bb4+ {[%emt 0:04:12]} 9. Nc3 {[%emt 0:00:29]} Bd7 {
[%emt 0:01:24]} 10. h5 {[%emt 0:02:38]} Nge7 {[%emt 0:00:26]} 11. a3 {[%emt 0:
00:00]} Bxc3+ {[%emt 0:02:06]} 12. bxc3 {[%emt 0:00:12]} Na5 {[%emt 0:00:30]}
13. Ng5 {[%emt 0:09:49]} h6 {[%emt 0:02:12]} 14. Nh3 {[%emt 0:00:03]} Rc8 {
[%emt 0:00:57]} 15. Bd2 {[%emt 0:05:24]} Nc4 {[%emt 0:02:21]} 16. O-O {[%emt 0:
00:00]} Nb2 {[%emt 0:01:35]} 17. Qc2 {[%emt 0:04:34]} Nxd3 {[%emt 0:00:20]} 18.
Qxd3 {[%emt 0:00:02]} a6 {[%emt 0:01:56]} 19. Qf3 {[%emt 0:06:03]} Nc6 {
[%emt 0:06:52]} 20. Qg4 {[%emt 0:05:46]} Kf8 {[%emt 0:02:33]} 21. Rfe1 {
[%emt 0:04:24]} Qb6 {[%emt 0:10:20]} 22. Rab1 {[%emt 0:02:57]} Qc7 {[%emt 0:00:
00]} 23. Re3 {[%emt 0:01:48]} Ne7 {[%emt 0:00:15]} 24. Rf3 {[%emt 0:05:13]} Bb5
{[%emt 0:00:56]} 25. Qxe6 {[%emt 0:04:34]} Ng8 {[%emt 0:06:05]} 26. Rxf7+ {
[%emt 0:04:53]} Qxf7 {[%emt 0:00:46]} 27. Qxc8+ {[%emt 0:00:02]} Be8 {[%emt 0:
00:00]} 28. Rxb7 {[%emt 0:02:22]} Ne7 {[%emt 0:01:12]} 29. Qc5 {[%emt 0:00:26]}
Rg8 {[%emt 0:04:39]} 30. Nf4 {[%emt 0:01:54]} g5 {[%emt 0:00:42]} 31. hxg6 {
[%emt 0:02:40]} 1-0

[Event "44th Chess Olympiad Open 2022"]
[Site "Chennai"]
[Date "2022.07.30"]
[Round "2.68"]
[White "Amba Oyon Marius Claude"]
[Black "Ursus van Bemmelen"]
[Result "1/2-1/2"]
[WhiteElo "1938"]
[BlackElo "2145"]
[Annotator "NA RC"]
[PlyCount "116"]
[EventDate "2022.??.??"]
[TimeControl "60"]

1. e4 {[%emt 0:00:13]} c5 {[%emt 0:00:30]} 2. Nf3 {[%emt 0:00:59]} e6 {[%emt 0:
00:00]} 3. d4 {[%emt 0:01:27]} cxd4 {[%emt 0:00:59]} 4. Nxd4 {[%emt 0:01:53]}
Nc6 {[%emt 0:00:43]} 5. Nb5 {[%emt 0:01:59]} d6 {[%emt 0:00:11]} 6. Bf4 {
[%emt 0:01:25]} e5 {[%emt 0:00:07]} 7. Be3 {[%emt 0:02:54]} Nf6 {[%emt 0:00:03]
} 8. N5c3 {[%emt 0:02:41]} Be6 {[%emt 0:06:52]} 9. Be2 {[%emt 0:02:24]} Be7 {
[%emt 0:05:03]} 10. O-O {[%emt 0:01:32]} O-O {[%emt 0:01:14]} 11. f3 {[%emt 0:
00:00]} d5 {[%emt 0:08:27]} 12. exd5 {[%emt 0:02:06]} Nxd5 {[%emt 0:00:18]} 13.
Nxd5 {[%emt 0:00:17]} Bxd5 {[%emt 0:06:43]} 14. Nc3 {[%emt 0:03:06]} Be6 {
[%emt 0:00:17]} 15. Ne4 {[%emt 0:01:05]} Nd4 {[%emt 0:04:13]} 16. Bxd4 {
[%emt 0:04:30]} exd4 {[%emt 0:04:40]} 17. Bd3 {[%emt 0:06:23]} f5 {[%emt 0:00:
00]} 18. Nd2 {[%emt 0:01:49]} Rc8 {[%emt 0:04:03]} 19. Kh1 {[%emt 0:10:29]} g6
{[%emt 0:13:20]} 20. Qe2 {[%emt 0:12:15]} Bf7 {[%emt 0:00:36]} 21. f4 {[%emt 0:
00:00]} Bf6 {[%emt 0:02:46]} 22. Nf3 {[%emt 0:02:51]} Re8 {[%emt 0:00:42]} 23.
Qf2 {[%emt 0:07:31]} Re3 {[%emt 0:06:01]} 24. Ne5 {[%emt 0:08:45]} Bxe5 {
[%emt 0:02:09]} 25. fxe5 {[%emt 0:00:09]} Qe7 {[%emt 0:03:11]} 26. Qf4 {
[%emt 0:03:12]} Qxe5 {[%emt 0:00:22]} 27. Qxe5 {[%emt 0:02:15]} Rxe5 {[%emt 0:
00:00]} 28. Rf4 {[%emt 0:00:20]} Rd8 {[%emt 0:00:20]} 29. Kg1 {[%emt 0:00:22]}
Be6 {[%emt 0:01:20]} 30. h4 {[%emt 0:03:09]} Kg7 {[%emt 0:00:32]} 31. Rd1 {
[%emt 0:03:02]} h6 {[%emt 0:01:44]} 32. Rf2 {[%emt 0:01:15]} g5 {[%emt 0:07:14]
} 33. Rdf1 {[%emt 0:02:06]} f4 {[%emt 0:00:34]} 34. g3 {[%emt 0:01:40]} Bh3 {
[%emt 0:05:25]} 35. gxf4 {[%emt 0:00:48]} gxf4 {[%emt 0:00:01]} 36. Rc1 {
[%emt 0:02:09]} Rf8 {[%emt 0:00:34]} 37. Kh2 {[%emt 0:00:26]} Re3 {[%emt 0:00:
00]} 38. Rg1+ {[%emt 0:00:39]} Rg3 {[%emt 0:00:24]} 39. Rxg3+ {[%emt 0:03:58]}
fxg3+ {[%emt 0:00:02]} 40. Kxg3 {[%emt 0:00:02]} Rxf2 {[%emt 0:00:15]} 41. Kxf2
{[%emt 0:30:24]} Kf6 {[%emt 0:30:01]} 42. Kg3 {[%emt 0:00:36]} Be6 {[%emt 0:00:
00]} 43. Kf4 {[%emt 0:00:00]} Bd5 {[%emt 0:00:00]} 44. a3 {[%emt 0:00:00]} b6 {
[%emt 0:00:00]} 45. b4 {[%emt 0:00:00]} Bc6 {[%emt 0:00:00]} 46. Be4 {[%emt 0:
00:00]} Bd7 {[%emt 0:00:00]} 47. Bf3 {[%emt 0:00:00]} Bf5 {[%emt 0:00:00]} 48.
Be4 {[%emt 0:00:00]} Bd7 {[%emt 0:00:00]} 49. Bd5 {[%emt 0:00:00]} Bf5 {
[%emt 0:00:00]} 50. Bb3 {[%emt 0:00:00]} Bg6 {[%emt 0:00:00]} 51. a4 {[%emt 0:
00:00]} a5 {[%emt 0:00:00]} 52. bxa5 {[%emt 0:00:00]} bxa5 {[%emt 0:00:00]} 53.
Kg3 {[%emt 0:00:00]} Bf5 {[%emt 0:00:00]} 54. Kf4 {[%emt 0:00:00]} Bg6 {
[%emt 0:00:00]} 55. Kg3 {[%emt 0:00:00]} Bf5 {[%emt 0:00:00]} 56. Kf4 {[%emt 0:
00:00]} Bg6 {[%emt 0:00:00]} 57. Kg3 {[%emt 0:00:00]} Bf5 {[%emt 0:00:00]} 58.
Kf4 {[%emt 0:00:00]} Bg6 {[%emt 0:00:00]} 1/2-1/2

[Event "44th Chess Olympiad Open 2022"]
[Site "Chennai"]
[Date "2022.07.30"]
[Round "2.69"]
[White "Mizzi, Jack"]
[Black "da Conceicao, Marcos"]
[Result "1-0"]
[WhiteElo "1913"]
[BlackElo "1713"]
[Annotator "NA RC"]
[PlyCount "61"]
[EventDate "2022.??.??"]
[TimeControl "60"]

1. d4 {[%emt 0:00:05]} d5 {[%emt 0:00:39]} 2. c4 {[%emt 0:00:14]} c6 {[%emt 0:
00:00]} 3. Nf3 {[%emt 0:00:17]} Nf6 {[%emt 0:00:51]} 4. Nbd2 {[%emt 0:00:12]}
Bg4 {[%emt 0:01:22]} 5. Ne5 {[%emt 0:01:47]} e6 {[%emt 0:03:09]} 6. Nxg4 {
[%emt 0:04:00]} Nxg4 {[%emt 0:00:35]} 7. e4 {[%emt 0:01:20]} Nf6 {[%emt 0:00:
00]} 8. e5 {[%emt 0:00:38]} Nfd7 {[%emt 0:02:05]} 9. cxd5 {[%emt 0:01:01]} cxd5
{[%emt 0:00:36]} 10. Bd3 {[%emt 0:01:16]} Nc6 {[%emt 0:01:11]} 11. Nf3 {
[%emt 0:02:21]} Bb4+ {[%emt 0:01:21]} 12. Bd2 {[%emt 0:00:39]} Be7 {[%emt 0:00:
00]} 13. O-O {[%emt 0:00:32]} O-O {[%emt 0:00:31]} 14. Rc1 {[%emt 0:02:55]} Rc8
{[%emt 0:02:44]} 15. Bc3 {[%emt 0:07:38]} f6 {[%emt 0:02:00]} 16. exf6 {
[%emt 0:00:31]} Bxf6 {[%emt 0:01:10]} 17. Re1 {[%emt 0:01:44]} Qe8 {[%emt 0:00:
00]} 18. Qe2 {[%emt 0:01:34]} Nd8 {[%emt 0:00:16]} 19. Bf5 {[%emt 0:01:43]} Rc6
{[%emt 0:05:54]} 20. Bh3 {[%emt 0:03:27]} Qf7 {[%emt 0:02:10]} 21. Ba5 {
[%emt 0:07:02]} Rxc1 {[%emt 0:06:47]} 22. Rxc1 {[%emt 0:00:07]} b6 {[%emt 0:00:
00]} 23. Rc8 {[%emt 0:02:57]} Re8 {[%emt 0:03:11]} 24. Bc3 {[%emt 0:01:33]} Nf8
{[%emt 0:00:38]} 25. Qb5 {[%emt 0:07:32]} Ng6 {[%emt 0:04:48]} 26. Bd2 {
[%emt 0:05:29]} h6 {[%emt 0:01:50]} 27. Bg4 {[%emt 0:08:39]} Rf8 {[%emt 0:00:
00]} 28. Bh5 {[%emt 0:02:34]} Kh7 {[%emt 0:05:15]} 29. Qd3 {[%emt 0:01:41]} Be7
{[%emt 0:04:41]} 30. Rc7 {[%emt 0:01:01]} Re8 {[%emt 0:03:01]} 31. Ne5 {
[%emt 0:00:22]} 1-0

[Event "44th Chess Olympiad Open 2022"]
[Site "Chennai"]
[Date "2022.07.30"]
[Round "2.69"]
[White "Cilia Vincenti, David"]
[Black "Guterres, Cosme"]
[Result "1-0"]
[WhiteElo "1904"]
[BlackElo "1692"]
[Annotator "NA RC"]
[PlyCount "75"]
[EventDate "2022.??.??"]
[TimeControl "60"]

1. d4 {[%emt 0:00:03]} Nf6 {[%emt 0:00:14]} 2. Nf3 {[%emt 0:00:09]} d5 {
[%emt 0:00:13]} 3. e3 {[%emt 0:00:14]} c6 {[%emt 0:00:16]} 4. Bd3 {[%emt 0:00:
00]} Bg4 {[%emt 0:00:13]} 5. Nbd2 {[%emt 0:00:12]} Nbd7 {[%emt 0:00:17]} 6. h3
{[%emt 0:00:08]} Bh5 {[%emt 0:00:36]} 7. O-O {[%emt 0:00:17]} e6 {[%emt 0:00:
00]} 8. c4 {[%emt 0:00:15]} Be7 {[%emt 0:00:23]} 9. b3 {[%emt 0:00:22]} a6 {
[%emt 0:00:17]} 10. Bb2 {[%emt 0:00:18]} Rc8 {[%emt 0:00:21]} 11. Qc2 {[%emt 0:
00:00]} b5 {[%emt 0:00:33]} 12. Ne5 {[%emt 0:02:12]} Nxe5 {[%emt 0:02:27]} 13.
dxe5 {[%emt 0:02:08]} Nd7 {[%emt 0:00:23]} 14. g4 {[%emt 0:05:33]} Bg6 {
[%emt 0:00:20]} 15. Bxg6 {[%emt 0:02:18]} hxg6 {[%emt 0:00:35]} 16. Kg2 {
[%emt 0:01:16]} Qc7 {[%emt 0:01:06]} 17. f4 {[%emt 0:02:35]} Qb6 {[%emt 0:00:
00]} 18. Rae1 {[%emt 0:08:44]} Qb7 {[%emt 0:00:32]} 19. f5 {[%emt 0:08:29]}
gxf5 {[%emt 0:01:10]} 20. gxf5 {[%emt 0:00:16]} Nf8 {[%emt 0:02:11]} 21. fxe6 {
[%emt 0:04:14]} fxe6 {[%emt 0:00:23]} 22. Rf3 {[%emt 0:03:51]} Kd7 {[%emt 0:00:
00]} 23. Rf7 {[%emt 0:09:42]} Re8 {[%emt 0:01:34]} 24. cxd5 {[%emt 0:01:47]}
cxd5 {[%emt 0:00:32]} 25. Rc1 {[%emt 0:12:21]} Rd8 {[%emt 0:01:02]} 26. Ba3 {
[%emt 0:02:10]} Ke8 {[%emt 0:02:17]} 27. Rxe7+ {[%emt 0:00:37]} Qxe7 {[%emt 0:
00:00]} 28. Bxe7 {[%emt 0:00:40]} Kxe7 {[%emt 0:00:23]} 29. Qc5+ {[%emt 0:00:
00]} Kf7 {[%emt 0:00:27]} 30. Rf1+ {[%emt 0:00:55]} Kg8 {[%emt 0:00:37]} 31.
Qe7 {[%emt 0:01:32]} Ra8 {[%emt 0:00:33]} 32. Rf7 {[%emt 0:02:42]} Rh7 {
[%emt 0:00:27]} 33. Nf3 {[%emt 0:00:20]} Rc8 {[%emt 0:02:41]} 34. Ng5 {[%emt 0:
00:00]} Rh6 {[%emt 0:00:58]} 35. Rxg7+ {[%emt 0:02:54]} Kh8 {[%emt 0:00:32]}
36. Rf7 {[%emt 0:03:25]} Kg8 {[%emt 0:00:39]} 37. Rf6 {[%emt 0:00:26]} Rh4 {
[%emt 0:00:45]} 38. Nxe6 {[%emt 0:02:27]} 1-0